bitfinex/quotes_ETHUSD_20241116
["timestamp","ask_amount","ask_price","bid_price","bid_amount"]
[1731717518792,3.24753,3079.3,3078.6,4.773862]
[1731717518793,6.49512,3079.3,3078.6,4.773862]
[1731717519133,3.24762,3079.2,3078.6,4.773862]
[1731717519815,3.24771,3079.1,3078.6,4.773862]
[1731717520329,0.2116,3079.4,3078.7,0.06495473]
[1731717520531,0.27195671,3079.4,3078.9,3.24782]
[1731717520736,3.24756,3079.3,3078.7,3.31300473]
[1731717520898,3.24772,3079.1,3078.6,1.525702]
[1731717521401,3.24802,3078.8,3078.3,3.7964]
[1731717521635,3.24802,3078.8,3078.3,7.04492]
[1731717522830,3.24802,3078.8,3078.3,0.7964]
[1731717523532,3.30816671,3079.0,3078.3,0.7964]
[1731717523533,0.06035671,3079.0,3078.3,0.7964]
[1731717523688,3.24808,3078.8,3078.3,0.7964]
[1731717523892,3.24808,3078.8,3078.3,1.200912]
[1731717524128,0.05804096,3078.7,3078.3,1.200912]
[1731717524336,6.49618,3078.8,3078.3,1.200912]
[1731717524571,3.24851,3078.4,3078.0,0.8113]
[1731717524693,3.24887,3078.0,3077.4,4.06077]
[1731717524897,0.05744723,3077.9,3077.7,3.24909]
[1731717525132,0.06035671,3078.3,3077.8,0.324909]
[1731717525303,0.0576608,3078.2,3077.8,3.573949]
[1731717525507,0.06035671,3078.9,3078.1,3.24875]
[1731717525707,0.05623705,3078.8,3078.4,3.24843]
[1731717526030,3.24772,3079.1,3078.5,3.24827]
[1731717526230,0.05616338,3078.7,3078.5,4.222792]
[1731717526535,0.05608924,3078.6,3078.5,4.222792]
[1731717526833,3.24782,3079.0,3078.5,4.222792]
[1731717527134,3.24752,3079.3,3078.5,3.24827]
[1731717527292,0.05653402,3079.2,3078.7,0.8113]
[1731717527493,0.05653402,3079.2,3078.7,4.05942]
[1731717527728,0.05653402,3079.2,3078.7,4.790189]
[1731717527927,0.05653402,3079.2,3078.7,1.542069]
[1731717528160,3.24752,3079.3,3078.7,1.542069]
[1731717528290,3.24752,3079.3,3078.8,3.248]
[1731717528291,0.05653402,3079.2,3078.8,3.248]
[1731717528635,3.24752,3079.3,3078.8,0.8038169]
[1731717528845,0.0564599,3079.1,3078.8,4.0518269]
[1731717529154,0.05653402,3079.2,3078.8,4.0518269]
[1731717529294,0.06035671,3079.4,3078.8,4.0518269]
[1731717529497,0.05660814,3079.3,3078.9,3.2479]
[1731717529720,3.4587,3079.7,3079.0,4.04271536]
[1731717529957,3.30406045,3079.6,3079.0,4.04271536]
[1731717530974,0.05683045,3079.6,3079.1,0.8113]
[1731717531141,3.45829,3080.1,3079.5,3.24728]
[1731717531341,0.11727892,3080.0,3079.6,0.324728]
[1731717531536,3.30717671,3080.0,3079.4,3.24736]
[1731717531730,0.0568711,3079.9,3079.4,3.24736]
[1731717532042,0.0568711,3079.9,3079.5,3.24724]
[1731717532428,3.24666,3080.1,3079.5,3.24724]
[1731717532429,0.06035671,3080.5,3079.7,0.8113]
[1731717532634,3.30665671,3080.5,3079.8,3.24696]
[1731717532829,3.24634,3080.4,3079.8,3.24696]
[1731717533553,3.24647,3080.3,3079.7,0.87623273]
[1731717533888,3.24647,3080.3,3079.7,4.12329273]
[1731717534360,3.30682671,3080.3,3079.7,0.8113]
[1731717534539,0.06035671,3080.2,3079.7,0.8113]
[1731717534741,3.24657,3080.2,3079.7,1.57254538]
[1731717535880,3.19657,3080.2,3079.7,1.57254538]
[1731717539599,0.06035671,3080.3,3079.7,1.57254538]
[1731717539742,3.24715,3079.7,3079.4,0.8113]
[1731717539942,3.24729,3079.5,3079.0,1.54127269]
[1731717540139,3.24715,3079.7,3079.1,0.06494665]
[1731717540455,3.24715,3079.7,3079.1,3.31264665]
[1731717540668,3.24672,3080.1,3079.3,3.24749]
[1731717540899,3.24645,3080.3,3079.2,4.36528378]
[1731717540900,3.30680671,3080.3,3079.6,0.8113]
[1731717541380,3.2466,3080.2,3079.6,0.8113]
[1731717541571,0.05643339,3080.1,3079.6,4.05845]
[1731717542074,3.30680671,3080.3,3079.6,4.05845]
[1731717542385,0.2116,3080.0,3079.3,0.43652838]
[1731717542681,3.2475,3079.3,3078.8,3.0]
[1731717542863,3.2475,3079.3,3078.8,3.624809]
[1731717543071,0.05576654,3079.2,3078.8,6.872819]
[1731717543274,0.05576654,3079.2,3078.8,3.68976153]
[1731717543441,3.24735,3079.5,3078.8,0.68976153]
[1731717543644,3.24735,3079.5,3078.8,3.31295253]
[1731717543878,3.24735,3079.5,3078.8,3.30774582]
[1731717544081,0.05591476,3079.4,3078.9,3.24788]
[1731717544244,0.05591476,3079.4,3079.0,0.05974456]
[1731717544575,0.05591476,3079.4,3078.9,3.30765269]
[1731717544804,0.05591476,3079.4,3078.9,3.96321796]
[1731717545008,3.30330476,3079.4,3078.9,0.71530796]
[1731717545320,3.30330476,3079.4,3078.8,3.248]
[1731717545824,3.30330476,3079.4,3078.9,0.06495085]
[1731717545825,0.05591476,3079.4,3078.9,0.06495085]
[1731717546332,0.05591476,3079.4,3079.1,3.24765]
[1731717546482,3.24711,3079.7,3079.1,3.31259696]
[1731717546919,0.05605516,3079.6,3079.1,3.31259696]
[1731717547380,0.05605516,3079.6,3079.2,3.24758]
[1731717547611,3.24688,3079.9,3079.2,3.24758]
[1731717547805,0.05598106,3079.5,3079.2,3.24758]
[1731717548120,3.24688,3079.9,3079.2,3.24758]
[1731717548330,0.05590696,3079.4,3079.3,3.24749]
[1731717548617,3.24681,3080.0,3079.6,0.754]
[1731717548845,0.06556342,3080.1,3079.6,0.754]
[1731717548988,0.2116,3080.3,3079.7,0.06493564]
[1731717548989,3.24661,3080.2,3079.7,0.06493564]
[1731717549692,3.24661,3080.2,3079.7,3.31199564]
[1731717550035,3.24661,3080.2,3079.7,3.24706]
[1731717550187,3.24661,3080.2,3079.7,3.76340882]
[1731717550724,3.24661,3080.2,3079.8,0.06493253]
[1731717550883,6.49276,3080.4,3079.8,0.06493253]
[1731717551083,3.24634,3080.4,3079.8,0.06493253]
[1731717551430,3.24634,3080.4,3079.8,3.31187253]
[1731717551591,6.49276,3080.4,3079.8,0.89253914]
[1731717551924,3.24634,3080.4,3079.8,0.89253914]
[1731717552429,6.49276,3080.4,3079.8,0.89253914]
[1731717552796,3.24634,3080.4,3079.8,0.89253914]
[1731717553008,6.49277,3080.4,3079.8,0.89253914]
[1731717553194,3.24644,3080.3,3079.8,0.89253914]
[1731717553395,3.24634,3080.4,3079.8,0.89253914]
[1731717554423,3.24649,3080.3,3079.8,0.89253914]
[1731717554791,3.24649,3080.3,3079.8,0.06493253]
[1731717555523,3.24649,3080.3,3079.8,0.38943253]
[1731717557689,0.2116,3080.6,3079.8,0.06493253]
[1731717557887,0.2116,3080.6,3079.6,1.20084471]
[1731717557888,0.2116,3080.6,3079.6,0.754]
[1731717558130,6.49369,3080.0,3079.6,0.754]
[1731717558287,3.24679,3080.0,3079.6,0.754]
[1731717558488,0.05550839,3079.9,3079.6,0.754]
[1731717559593,3.30237839,3079.9,3079.6,0.754]
[1731717560847,0.05550839,3079.9,3079.6,0.754]
[1731717561049,6.49341,3080.1,3079.6,0.754]
[1731717561254,0.05543175,3079.8,3079.6,0.754]
[1731717561581,0.05535766,3079.7,3079.6,0.754]
[1731717561981,3.24668,3080.1,3079.6,0.754]
[1731717562181,0.05535766,3079.7,3079.6,0.754]
[1731717562365,3.24654,3080.2,3079.6,4.401299]
[1731717562680,3.24624,3080.5,3079.8,3.24688]
[1731717562976,0.05565283,3080.1,3079.8,3.24688]
[1731717563180,3.24624,3080.5,3079.6,4.401249]
[1731717563181,0.05557875,3080.0,3079.6,4.401249]
[1731717563356,3.24653,3080.3,3079.6,4.401249]
[1731717563559,0.0557269,3080.2,3079.7,3.6871849]
[1731717565878,0.0557269,3080.2,3079.9,0.7981]
[1731717566095,3.24644,3080.3,3079.9,0.7981]
[1731717566244,3.30230283,3080.1,3079.9,0.7981]
[1731717566445,3.24686,3079.9,3079.6,0.7981]
[1731717566889,3.24668,3080.1,3079.6,0.7981]
[1731717566890,0.05543035,3079.8,3079.6,0.7981]
[1731717567039,3.24668,3080.1,3079.6,0.7981]
[1731717567247,0.05535626,3079.7,3079.6,0.7981]
[1731717567453,3.24668,3080.1,3079.6,1.20913556]
[1731717567673,3.24668,3080.1,3079.6,0.7981]
[1731717567993,0.05557991,3080.0,3079.6,0.7981]
[1731717568199,3.30233991,3080.0,3079.6,0.7981]
[1731717568400,0.05557991,3080.0,3079.6,0.7981]
[1731717569094,3.30233991,3080.0,3079.6,0.7981]
[1731717570398,0.05557991,3080.0,3079.6,0.7981]
[1731717570603,3.30240991,3080.0,3079.6,0.7981]
[1731717570890,0.05550583,3079.9,3079.6,0.7981]
[1731717572265,3.2467,3080.1,3079.6,4.449796]
[1731717572577,6.49344,3080.1,3079.6,1.202646]
[1731717572787,3.2463,3080.5,3079.8,0.7942]
[1731717572969,0.05557713,3080.0,3079.9,3.79677]
[1731717573171,6.49221,3080.7,3080.0,3.705807]
[1731717573497,0.05602151,3080.6,3080.0,3.705807]
[1731717573859,0.05602151,3080.6,3080.1,0.7942]
[1731717574059,0.05602151,3080.6,3080.1,4.04076]
[1731717574259,0.05602151,3080.6,3080.2,3.24653]
[1731717576854,0.05602151,3080.6,3080.3,3.24642]
[1731717577227,3.24585,3080.9,3080.3,3.24642]
[1731717577438,3.24585,3080.9,3080.4,0.06491967]
[1731717577751,0.2116,3081.0,3080.1,1.5688667]
[1731717577752,3.2462,3080.6,3080.1,1.5688667]
[1731717578059,3.2462,3080.6,3080.0,3.24667]
[1731717578060,3.24639,3080.4,3079.9,3.0]
[1731717578228,0.06556342,3080.3,3079.8,0.7942]
[1731717578430,3.24661,3080.2,3079.8,0.7942]
[1731717578846,0.05565887,3080.1,3079.8,0.7942]
[1731717579020,0.05565887,3080.1,3079.8,1.5387876]
[1731717579649,0.05565887,3080.1,3079.9,0.06493055]
[1731717580024,3.24644,3080.3,3079.9,0.06493055]
[1731717580369,0.05573294,3080.2,3079.9,0.06493055]
[1731717580875,3.30230887,3080.1,3079.6,3.404546]
[1731717581224,3.30230887,3080.1,3079.7,0.7778556]
[1731717581763,0.05565887,3080.1,3079.8,0.06493156]
[1731717582305,0.05558479,3080.0,3079.8,0.06493156]
[1731717582567,3.24644,3080.3,3079.8,0.06493156]
[1731717582863,3.24644,3080.3,3079.8,4.06132988]
[1731717583170,0.05573294,3080.2,3079.8,4.06132988]
[1731717583467,3.24644,3080.3,3079.8,4.06132988]
[1731717583668,0.05565887,3080.1,3079.8,4.06132988]
[1731717583865,0.05573294,3080.2,3079.8,4.06132988]
[1731717584040,0.05558479,3080.0,3079.8,0.74943832]
[1731717584240,3.24672,3080.1,3079.8,0.74943832]
[1731717584459,0.05551071,3079.9,3079.6,1.06843752]
[1731717584633,3.24672,3080.1,3079.6,0.66389152]
[1731717585318,3.24672,3080.1,3079.6,3.91105152]
[1731717585719,3.24647,3080.3,3079.6,3.91105152]
[1731717585923,3.24647,3080.3,3079.6,7.15812152]
[1731717586185,3.24656,3080.2,3079.7,0.79604215]
[1731717586638,3.24656,3080.2,3079.8,0.06493054]
[1731717586639,0.05565887,3080.1,3079.8,0.06493054]
[1731717587035,3.24644,3080.3,3079.8,0.06493054]
[1731717587240,0.05573294,3080.2,3079.8,0.06493054]
[1731717587539,6.49296,3080.3,3079.8,0.06493054]
[1731717587756,0.05565887,3080.1,3079.8,0.06493054]
[1731717588064,0.05558479,3080.0,3079.7,4.04310215]
[1731717588260,3.2466,3080.2,3079.7,4.04310215]
[1731717588465,0.05551071,3079.9,3079.7,0.79604215]
[1731717588631,3.2466,3080.2,3079.7,0.79604215]
[1731717588632,3.24666,3080.1,3079.7,0.79604215]
[1731717588949,0.05558269,3080.0,3079.7,0.79604215]
[1731717589339,3.24677,3080.0,3079.7,0.79604215]
[1731717589555,3.24696,3079.8,3079.5,0.8023]
[1731717589928,3.24717,3079.6,3079.5,0.8023]
[1731717590268,6.54972634,3079.6,3079.2,0.7976]
[1731717590657,6.54972634,3079.6,3079.2,0.7476]
[1731717590858,3.30245634,3079.6,3079.2,0.7476]
[1731717591169,0.05528634,3079.6,3079.3,3.24741]
[1731717591667,3.24692,3079.9,3079.3,3.24741]
[1731717591826,0.05521224,3079.5,3079.3,3.24741]
[1731717592033,3.24692,3079.9,3079.3,3.24741]
[1731717592235,0.05513814,3079.4,3079.3,7.3416137]
[1731717592462,3.247,3079.8,3079.3,7.3416137]
[1731717592769,0.05513814,3079.4,3079.3,7.3416137]
[1731717593072,0.05513814,3079.4,3079.3,4.0942037]
[1731717593274,3.247,3079.8,3079.3,4.0942037]
[1731717593476,0.05512654,3079.4,3079.3,4.0942037]
[1731717593715,6.49405,3079.8,3079.3,4.0942037]
[1731717593862,0.05512654,3079.4,3079.3,4.0942037]
[1731717594062,3.247,3079.8,3079.3,4.0942037]
[1731717594262,3.247,3079.8,3079.2,2.11160564]
[1731717594263,0.05512654,3079.4,3079.2,2.11160564]
[1731717594472,3.24719,3079.6,3079.2,2.11160564]
[1731717594680,0.05505243,3079.3,3079.2,2.11160564]
[1731717594909,3.24719,3079.6,3079.2,2.11160564]
[1731717595083,0.05505243,3079.3,3079.2,2.11160564]
[1731717595259,3.24719,3079.6,3079.2,2.11160564]
[1731717595821,0.05520064,3079.5,3079.2,0.66446864]
[1731717596117,0.05520064,3079.5,3079.1,3.0]
[1731717596707,0.05520064,3079.5,3078.9,0.7976]
[1731717596708,3.24766,3079.2,3078.9,0.7976]
[1731717596909,3.24766,3079.2,3078.6,4.04575]
[1731717597081,0.0549042,3079.1,3078.7,0.649631]
[1731717597315,3.3026342,3079.1,3078.7,0.649631]
[1731717597518,3.3026342,3079.1,3078.8,0.06495259]
[1731717598269,0.0549042,3079.1,3078.6,1.1221]
[1731717598468,3.24731,3079.5,3078.7,3.24812]
[1731717598719,0.05483007,3079.0,3078.8,0.79242038]
[1731717598871,3.24778,3079.1,3078.8,0.79242038]
[1731717599204,0.05475594,3078.9,3078.6,1.1221]
[1731717599505,0.05468181,3078.8,3078.6,4.1221]
[1731717599828,0.05468181,3078.8,3078.6,1.1221]
[1731717599973,3.24788,3079.0,3078.6,1.1221]
[1731717600186,3.24778,3079.1,3078.6,1.1221]
[1731717600187,3.24778,3079.1,3078.6,1.599673]
[1731717600374,3.30266594,3078.9,3078.6,1.599673]
[1731717600684,3.30266594,3078.9,3078.1,4.54716]
[1731717600685,3.24862,3078.3,3077.6,4.3713]
[1731717600883,3.24866,3078.2,3077.6,4.3713]
[1731717601105,3.24862,3078.3,3077.6,1.1221]
[1731717601307,0.05416274,3078.1,3077.6,1.1221]
[1731717601514,3.24893,3078.0,3077.6,1.3646127]
[1731717601710,3.30301857,3078.0,3077.6,1.3646127]
[1731717602625,0.05408857,3078.0,3077.7,3.0649763]
[1731717602925,3.51008,3078.4,3077.7,6.3140763]
[1731717603082,3.51008,3078.4,3077.7,3.8328602]
[1731717603083,0.05397839,3077.9,3077.7,3.8328602]
[1731717603285,3.24876,3078.1,3077.7,3.0]
[1731717603721,0.05405234,3078.0,3077.7,3.0]
[1731717603988,0.05405234,3078.0,3077.6,4.6138827]
[1731717604293,0.05405234,3078.0,3077.7,3.0]
[1731717604616,3.31418342,3078.3,3077.7,3.0]
[1731717604869,3.31418342,3078.3,3077.8,3.24907]
[1731717604870,0.05397816,3077.9,3077.8,3.24907]
[1731717605125,0.05416678,3078.2,3077.8,1.08629527]
[1731717605308,0.05416678,3078.2,3078.1,3.24875]
[1731717605636,3.57532342,3078.7,3078.1,3.24875]
[1731717605943,0.0544634,3078.6,3078.1,3.24875]
[1731717606141,0.0544634,3078.6,3078.5,3.24833]
[1731717606637,3.31321342,3079.2,3078.5,3.31328905]
[1731717606638,3.2477,3079.1,3078.5,3.31328905]
[1731717606801,3.31321342,3079.2,3078.6,3.24819]
[1731717606997,0.05475994,3079.0,3078.8,4.03871]
[1731717607195,0.05483406,3079.1,3079.0,3.2478]
[1731717607426,3.50881,3079.6,3079.0,3.2478]
[1731717608043,0.05514234,3079.5,3079.0,3.2478]
[1731717608400,0.05514234,3079.5,3079.0,3.24772]
[1731717608639,3.24729,3079.5,3078.9,0.06494888]
[1731717608852,3.24798,3078.9,3078.4,3.0]
[1731717609003,3.24834,3078.5,3078.0,3.24885]
[1731717609205,0.05432693,3078.4,3077.9,0.7525]
[1731717609544,3.24844,3078.4,3077.9,0.7525]
[1731717609699,3.24844,3078.4,3077.8,3.24906]
[1731717609898,0.05425277,3078.3,3077.9,3.24888]
[1731717610241,6.49656,3078.6,3078.0,3.31378017]
[1731717610439,0.05417861,3078.2,3078.0,0.06497017]
[1731717610655,0.05417861,3078.2,3077.9,3.0]
[1731717610656,3.2485,3078.4,3077.9,3.0]
[1731717610803,0.05410444,3078.1,3077.9,3.0]
[1731717611302,0.05403027,3078.0,3077.9,3.0]
[1731717611807,3.31404342,3078.4,3077.9,3.0]
[1731717612324,0.05425277,3078.3,3077.9,0.06497227]
[1731717612516,3.24805,3078.8,3078.2,3.24865]
[1731717612830,3.24805,3078.8,3078.3,3.24852]
[1731717613028,3.24805,3078.8,3078.2,4.00085]
[1731717613405,3.31370342,3078.7,3078.0,3.24882]
[1731717613833,3.24823,3078.6,3078.0,3.24882]
[1731717614254,0.06556342,3078.7,3078.0,3.24882]
[1731717614438,3.9238,3078.8,3078.0,3.24882]
[1731717614642,0.06556342,3078.7,3078.0,3.24882]
[1731717614814,3.24824,3078.6,3078.0,3.24882]
[1731717615020,3.31373342,3078.7,3078.1,3.24872]
[1731717615345,3.24824,3078.6,3078.0,3.24882]
[1731717615752,0.06556342,3078.7,3078.1,3.24873]
[1731717615949,3.24812,3078.7,3078.1,3.24873]
[1731717616154,0.67575,3078.8,3078.2,0.06496538]
[1731717616378,3.24803,3078.8,3078.2,0.06496538]
[1731717616514,3.24803,3078.8,3078.2,3.31354538]
[1731717617159,0.06556342,3078.9,3078.2,3.31354538]
[1731717617360,3.24808,3078.8,3078.2,3.31353538]
[1731717618556,0.05454404,3078.7,3078.2,3.31353538]
[1731717619052,0.05454404,3078.7,3078.3,3.24854]
[1731717619556,3.2476,3079.2,3078.6,3.24822]
[1731717619854,3.2476,3079.2,3078.6,3.31317638]
[1731717620087,3.24787,3079.0,3078.5,0.7522]
[1731717620864,3.99538276,3079.2,3078.6,3.24821]
[1731717621176,0.32716342,3079.3,3078.8,3.24801]
[1731717621475,3.24722,3079.6,3078.9,3.24791]
[1731717621476,3.24728,3079.5,3078.9,3.24791]
[1731717621674,3.31284342,3079.5,3078.9,3.24791]
[1731717622062,3.31284342,3079.5,3078.8,0.06495282]
[1731717622063,3.24738,3079.4,3078.8,0.06495282]
[1731717622383,3.24738,3079.4,3078.7,3.24805]
[1731717622552,3.24795,3078.9,3078.2,0.7522]
[1731717622753,3.24812,3078.7,3078.1,3.24869]
[1731717623490,0.2616,3078.4,3077.9,4.00111]
[1731717623978,0.2616,3078.4,3077.7,3.24914]
[1731717623979,0.32716342,3078.4,3077.7,3.24914]
[1731717624177,3.24854,3078.3,3077.8,0.36]
[1731717624479,3.24854,3078.3,3077.7,3.24914]
[1731717624661,3.24865,3078.2,3077.7,3.24914]
[1731717625657,3.24854,3078.3,3077.7,3.24914]
[1731717626269,3.24854,3078.3,3077.8,3.55]
[1731717626642,3.24854,3078.3,3077.8,6.79906]
[1731717627041,0.2616,3078.4,3077.8,7.478896]
[1731717627247,0.2616,3078.7,3078.2,0.55]
[1731717627511,3.24842,3078.5,3077.9,0.55]
[1731717627653,0.06556342,3078.4,3077.9,0.55]
[1731717627857,3.24859,3078.3,3077.9,0.55]
[1731717628068,3.24845,3078.4,3077.8,3.79899]
[1731717628369,3.24855,3078.3,3077.8,0.55]
[1731717628570,3.24855,3078.3,3077.4,3.63519061]
[1731717628571,0.2616,3078.0,3077.4,3.63519061]
[1731717628779,0.2616,3078.0,3077.5,3.24937]
[1731717629255,0.2616,3078.0,3077.6,3.31424681]
[1731717629449,0.2616,3078.0,3077.6,3.24927]
[1731717630248,0.2616,3078.0,3077.7,0.06497687]
[1731717630459,0.2616,3078.0,3077.6,3.24927]
[1731717631637,0.2616,3078.0,3077.4,3.88459061]
[1731717631919,0.2616,3078.0,3077.5,3.0]
[1731717632120,3.51047,3078.0,3077.5,3.0]
[1731717633188,3.249,3077.9,3077.5,3.0]
[1731717633594,3.249,3077.9,3077.4,0.70017316]
[1731717633595,0.08755523,3077.8,3077.4,0.70017316]
[1731717633803,3.33663523,3077.8,3077.4,0.63519061]
[1731717635426,3.33663523,3077.8,3077.3,3.0]
[1731717636986,3.33663523,3077.8,3077.2,0.797]
[1731717636987,3.24929,3077.6,3077.2,0.797]
[1731717637186,3.24929,3077.6,3077.1,0.55]
[1731717637390,0.06556342,3077.7,3076.8,4.3716]
[1731717637391,3.5111,3077.4,3076.9,0.55]
[1731717637589,3.5111,3077.4,3076.7,0.55]
[1731717637590,3.24971,3077.2,3076.7,0.55]
[1731717637823,3.24971,3077.2,3076.9,0.55]
[1731717637989,0.0841351,3077.1,3076.9,0.55]
[1731717638194,3.87065292,3077.4,3076.9,0.55]
[1731717638394,0.08406197,3077.0,3076.9,0.55]
[1731717638593,3.5111,3077.4,3076.9,3.55]
[1731717638810,0.08406197,3077.0,3076.9,3.55]
[1731717639015,3.24967,3077.3,3076.9,3.0]
[1731717639236,0.08406197,3077.0,3076.8,0.65397855]
[1731717639446,3.24991,3077.1,3076.8,0.65397855]
[1731717639736,3.24993,3077.0,3076.5,3.797]
[1731717639940,3.33399197,3077.0,3076.5,3.797]
[1731717640637,3.33399197,3077.0,3076.6,0.55]
[1731717641797,0.06556342,3076.9,3076.2,4.37221]
[1731717642005,3.51173,3076.8,3076.3,0.55]
[1731717642219,3.51173,3076.8,3076.2,4.04769]
[1731717642220,3.31580342,3076.7,3076.2,4.04769]
[1731717642405,3.59561779,3076.8,3076.2,4.04769]
[1731717642607,0.08374035,3076.6,3076.2,4.04769]
[1731717642835,0.08381349,3076.7,3076.0,3.55398378]
[1731717643047,0.0836672,3076.5,3075.9,1.13611133]
[1731717643254,3.2505,3076.5,3075.9,4.04807]
[1731717643400,0.06556342,3076.4,3075.9,4.04807]
[1731717643602,0.08358753,3076.4,3075.9,4.11308313]
[1731717643908,3.25042,3076.6,3076.1,3.25083]
[1731717644236,0.08351438,3076.3,3076.0,3.0]
[1731717644442,3.25058,3076.4,3076.0,3.0]
[1731717644947,0.08351438,3076.3,3076.0,3.0]
[1731717647605,0.08351438,3076.3,3075.9,0.66124453]
[1731717647976,3.251,3076.0,3075.6,0.7931]
[1731717648242,3.251,3076.0,3075.5,3.25141]
[1731717648403,0.08319636,3075.9,3075.5,3.25141]
[1731717648598,3.251,3076.0,3075.5,3.25141]
[1731717649047,0.06556342,3076.1,3075.5,3.25141]
[1731717649202,3.31645342,3076.1,3075.5,3.25141]
[1731717649404,3.99934076,3076.1,3075.6,3.0]
[1731717649604,0.08326953,3076.0,3075.6,3.0]
[1731717649949,0.08326953,3076.0,3075.6,6.25135]
[1731717650129,0.08326953,3076.0,3075.8,3.25112]
[1731717650314,0.08326953,3076.0,3075.5,3.0]
[1731717650646,3.25087,3076.1,3075.5,6.31649248]
[1731717650844,0.08318682,3075.9,3075.5,6.31649248]
[1731717651005,0.08326,3076.0,3075.5,6.31649248]
[1731717651207,0.08311387,3075.8,3075.5,6.31649248]
[1731717651439,3.25087,3076.1,3075.5,6.25147]
[1731717651641,0.08304069,3075.7,3075.5,6.25147]
[1731717651841,0.32716342,3076.2,3075.5,6.25147]
[1731717651842,0.32716342,3076.2,3075.6,3.25135]
[1731717652154,3.57801342,3076.2,3075.6,3.25135]
[1731717652943,3.25106,3076.0,3075.5,3.0]
[1731717653316,0.06556342,3075.9,3075.4,3.88650148]
[1731717653553,3.2512,3075.8,3075.4,0.63498148]
[1731717654013,3.25104,3076.0,3075.4,0.63498148]
[1731717654217,3.31664342,3075.9,3075.4,0.63498148]
[1731717654657,3.31664342,3075.9,3075.4,3.88658148]
[1731717655319,0.06556342,3075.9,3075.4,3.88658148]
[1731717655520,3.31651342,3076.1,3075.4,3.88658148]
[1731717656015,3.25099,3076.0,3075.5,3.25143]
[1731717656233,0.06556342,3075.9,3075.5,3.25143]
[1731717656459,0.06556342,3076.1,3075.5,3.25143]
[1731717656666,0.2616,3076.5,3075.8,3.25108]
[1731717656814,3.51214,3076.5,3075.9,3.251]
[1731717657018,0.06556342,3076.4,3075.9,3.251]
[1731717657942,3.25042,3076.6,3075.7,0.06501848]
[1731717657943,0.06556342,3076.9,3076.3,0.55]
[1731717658146,0.2616,3077.4,3076.5,3.25043]
[1731717658147,3.31526342,3077.2,3076.5,3.25043]
[1731717658420,0.2616,3077.4,3076.9,3.25002]
[1731717658421,0.32716342,3077.4,3076.9,3.25002]
[1731717659243,3.93432576,3077.4,3076.6,4.04339]
[1731717659450,3.93432576,3077.4,3076.8,3.25011]
[1731717660146,0.68482576,3077.4,3076.8,3.25006]
[1731717660472,0.02,3078.1,3076.8,3.25006]
[1731717660473,0.2616,3077.7,3077.0,3.24985]
[1731717660619,0.06556342,3077.6,3077.1,3.24974]
[1731717660823,3.24911,3077.8,3077.1,3.24974]
[1731717660824,0.06556342,3077.8,3077.4,3.24947]
[1731717661467,0.06556342,3077.8,3077.1,3.24976]
[1731717661468,0.06556342,3077.8,3077.3,3.24953]
[1731717661621,3.24918,3077.7,3077.1,3.24976]
[1731717661824,0.06556342,3077.6,3077.1,3.24976]
[1731717662350,3.24916,3077.8,3077.1,3.24976]
[1731717662351,0.06556342,3077.7,3077.2,3.24969]
[1731717662666,3.31472342,3077.8,3077.2,3.24969]
[1731717663567,0.07900039,3077.7,3077.2,3.24969]
[1731717664935,0.07900039,3077.7,3077.3,3.24956]
[1731717665148,0.07900039,3077.7,3077.5,3.24938]
[1731717665362,0.07900039,3077.7,3077.3,3.31454929]
[1731717665363,0.07900039,3077.7,3077.3,3.24956]
[1731717665538,0.2616,3078.0,3077.3,3.24956]
[1731717666075,0.2616,3078.0,3076.3,0.8005]
[1731717666076,3.51133,3077.2,3076.3,0.8005]
[1731717666240,3.25014,3076.8,3076.1,3.89869267]
[1731717666424,0.06556342,3076.7,3076.1,3.89869267]
[1731717666629,3.39407553,3076.7,3076.1,3.89869267]
[1731717666925,0.07827211,3076.7,3076.4,0.8005]
[1731717667126,0.07827211,3076.7,3076.6,3.25034]
[1731717667366,0.06556342,3077.1,3076.6,3.25034]
[1731717667567,0.2616,3078.2,3077.6,3.24928]
[1731717667779,0.32716342,3078.2,3077.8,3.24906]
[1731717667942,0.2616,3078.2,3077.9,3.24895]
[1731717668329,0.06556342,3078.4,3077.8,3.24906]
[1731717668330,0.06556342,3078.4,3078.0,3.24877]
[1731717668676,0.39694376,3078.4,3077.9,3.24892]
[1731717669212,0.06556342,3078.5,3078.0,3.24883]
[1731717669421,0.06556342,3078.8,3078.3,3.24852]
[1731717669598,0.06556342,3078.8,3078.0,0.86547449]
[1731717669599,0.06556342,3078.8,3078.0,0.8005]
[1731717669768,0.06556342,3078.8,3077.9,3.24894]
[1731717669769,3.2482,3078.7,3077.9,3.24894]
[1731717669972,3.31387342,3078.6,3078.0,3.24884]
[1731717670398,0.06556342,3078.6,3078.1,3.24874]
[1731717670708,3.24823,3078.6,3078.1,3.24874]
[1731717670863,3.24823,3078.6,3078.0,0.0649705]
[1731717670864,3.31379342,3078.6,3077.9,3.24893]
[1731717671277,3.31379342,3078.6,3078.0,3.24884]
[1731717671484,3.31379342,3078.6,3078.0,3.31381051]
[1731717671695,0.06556342,3078.6,3078.1,3.24875]
[1731717671878,0.2616,3078.9,3078.3,3.24844]
[1731717672217,3.24781,3079.0,3078.4,3.24841]
[1731717672380,0.06556342,3078.9,3078.4,3.24841]
[1731717673484,3.31350342,3078.9,3078.3,0.8005]
[1731717673708,3.24819,3078.7,3078.0,0.8005]
[1731717673888,3.24819,3078.7,3077.7,3.0]
[1731717673889,3.24844,3078.4,3077.9,3.55]
[1731717674803,3.57546342,3078.6,3077.9,3.55]
[1731717675140,3.57546342,3078.6,3077.9,6.79894]
[1731717675322,3.24838,3078.5,3077.9,3.55]
[1731717675517,3.24834,3078.5,3077.9,6.79896]
[1731717675817,3.24834,3078.5,3077.9,3.55]
[1731717676023,6.49677,3078.5,3077.9,3.55]
[1731717676187,6.49677,3078.5,3077.6,3.24926]
[1731717676188,0.06556342,3078.4,3077.6,3.24926]
[1731717676397,3.24878,3078.1,3077.4,4.04991]